{"text_format":"1","workbook":"xlsx","n_sheets":8,"sheets":["Classement","FMJ1","FMJ2","FMJ3","FMJ4","FMJ5","Demi-Finale","Finale"],"not_rendered":{"charts":0,"images":23,"macros":1,"external_links":0,"defined_names":1,"comments":0,"pivot_tables":0},"unopened":[],"bounds":{"document_bytes":16777216,"sheet_cells":100000,"rows_first":2000,"rows_last":500,"rows_between":2000,"halvings":0,"cell_chars":16384,"cell_head_chars":4096},"cells_cut":0,"cells_raw":0,"read":"whole","date_system":"1900"}

{"sheet":"Classement","index":0,"n_rows":46,"n_cols":21,"rows_kept":46,"cut":false,"hidden":false,"merged":[[17,10,18,10],[34,12,35,15],[22,10,23,10],[26,12,26,15],[22,12,23,15],[21,12,21,15],[31,12,31,15],[27,12,28,15],[29,10,30,10],[29,12,30,15],[32,12,33,15],[26,4,26,7],[21,4,21,7],[5,19,5,20],[3,17,3,20],[6,17,6,18],[6,19,6,20],[9,19,9,20],[17,12,18,15],[5,17,5,18],[13,18,13,19],[16,18,16,19],[12,18,12,19],[19,12,20,15],[9,17,9,18],[19,17,20,20],[21,17,23,20],[1,1,1,15],[3,9,3,15],[16,12,16,15],[10,9,10,15],[11,12,11,15],[16,4,16,7],[2,1,2,15],[3,1,3,6],[11,4,11,7],[27,2,28,2],[14,2,15,2],[10,1,10,7],[12,12,13,15],[14,10,15,10],[14,12,15,15],[22,2,23,2],[22,4,23,7],[19,10,20,10],[27,4,28,7],[17,2,18,2],[17,4,18,7],[12,2,13,2],[12,4,13,7],[24,12,25,15],[27,10,28,10],[32,2,33,2],[32,4,33,7],[34,2,35,2],[34,4,35,7],[12,10,13,10],[24,2,25,2],[24,4,25,7],[24,10,25,10],[29,2,30,2],[29,4,30,7],[19,2,20,2],[19,4,20,7],[14,4,15,7],[31,4,31,7],[32,10,33,10],[34,10,35,10]]}
[]
[null,"DIVISION 2 Dames"]
[null,"Phase de qualification"]
[null,"Poule A",null,null,null,null,null,null,null,"POULE B",null,null,null,null,null,null,null,"1/2 Finales"]
[null,"ANGERS",null,null,"Classement","Pts","J","MG",null,"La DOMANGERE 2",null,null,"Classement","Pts","J","MG"]
[null,"NANTES Erdre",null,{"$f":"classementPouleA(E6)","v":1},"ILE d'OR 2",{"$f":"CalculerNombrePoints(E6)","v":7},{"$f":"CalculerNombreMatchs(E6)","v":4},{"$f":"CalculerNombreMatchsGagne(E6)","v":14},null,"PORNIC",null,{"$f":"classementPouleB(M6)","v":1},"La BAULE",{"$f":"CalculerNombrePoints(M6)","v":7},{"$f":"CalculerNombreMatchs(M6)","v":4},{"$f":"CalculerNombreMatchsGagne(M6)","v":14},null,"1er Poule A / 2eme Poule B",null,"1er Poule B / 2eme Poule A"]
[null,"ILE d'OR 2",null,{"$f":"classementPouleA(E7)","v":1},"ANGERS",{"$f":"CalculerNombrePoints(E7)","v":7},{"$f":"CalculerNombreMatchs(E7)","v":4},{"$f":"CalculerNombreMatchsGagne(E7)","v":12},null,"La BAULE",null,{"$f":"classementPouleB(M7)","v":2},"CHOLET",{"$f":"CalculerNombrePoints(M7)","v":6},{"$f":"CalculerNombreMatchs(M7)","v":4},{"$f":"CalculerNombreMatchsGagne(M7)","v":9},null,"Date: 18/02/2018       Lieu : CHOLET 11H",null,"Date: 18/02/2018       Lieu : ILE D'OR 10H"]
[null,"LAVAL",null,{"$f":"classementPouleA(E8)","v":3},"NANTES Erdre",{"$f":"CalculerNombrePoints(E8)","v":6},{"$f":"CalculerNombreMatchs(E8)","v":4},{"$f":"CalculerNombreMatchsGagne(E8)","v":9},null,"Les FONTENELLES",null,2,"Les FONTENELLES",{"$f":"CalculerNombrePoints(M8)","v":6},{"$f":"CalculerNombreMatchs(M8)","v":4},{"$f":"CalculerNombreMatchsGagne(M8)","v":9},null,"ILE d'OR 2","Les FONTENELLES","La BAULE","ANGERS"]
[null,"BAUGE",null,{"$f":"classementPouleA(E9)","v":4},"LAVAL",{"$f":"CalculerNombrePoints(E9)","v":5},{"$f":"CalculerNombreMatchs(E9)","v":4},{"$f":"CalculerNombreMatchsGagne(E9)","v":9},null,"CHOLET",null,4,"PORNIC",{"$f":"CalculerNombrePoints(M9)","v":5},{"$f":"CalculerNombreMatchs(M9)","v":4},{"$f":"CalculerNombreMatchsGagne(M9)","v":9},null,3,2,2,3]
[null,null,null,{"$f":"classementPouleA(E10)","v":4},"BAUGE",{"$f":"CalculerNombrePoints(E10)","v":5},{"$f":"CalculerNombreMatchs(E10)","v":4},{"$f":"CalculerNombreMatchsGagne(E10)","v":6},null,null,null,4,"La DOMANGERE 2",{"$f":"CalculerNombrePoints(M10)","v":5},{"$f":"CalculerNombreMatchs(M10)","v":4},{"$f":"CalculerNombreMatchsGagne(M10)","v":8},null,"Demi-Finale",null,"Demi-Finale"]
[]
[null,"Journée 1","Date","Scores","Feuilles de Match",null,null,null,null,"Journée 1","Date","Scores","Feuilles de Match"]
[null,"BAUGE","2017-11-12",3,"Journée 1",null,null,null,null,"CHOLET","2017-11-12",2,"Journée 1",null,null,null,null,null,"Finale"]
[null,"LAVAL",null,2,null,null,null,null,null,"Les FONTENELLES",null,3,null,null,null,null,null,null,"Date: 18/03/2018       Lieu : "]
[null,"ANGERS","2017-11-12",3,"Journée 1",null,null,null,null,"La DOMANGERE 2","2017-11-12",2,"Journée 1",null,null,null,null,null,"ILE d'OR 2","ANGERS"]
[null,"NANTES Erdre",null,2,null,null,null,null,null,"PORNIC",null,3,null,null,null,null,null,null,"score","score"]
[null,"Journée 2","Date","Scores","Feuilles de Match",null,null,null,null,"Journée 2","Date","Scores","Feuilles de Match",null,null,null,null,null,"Finale"]
[null,"LAVAL","26/112017",2,"Journée 2",null,null,null,null,"Les FONTENELLES","26/112017",2,"Journée 2"]
[null,"ANGERS",null,3,null,null,null,null,null,"La DOMANGERE 2",null,3]
[null,"ILE d'OR 2","26/112017",4,"Journée 2",null,null,null,null,"La BAULE","26/112017",5,"Journée 2",null,null,null,null,"Informations du comité de l'épreuve.                                                                                                                                                                                                                                                                                                                                                                               CLIQUEZ SUR Journée 1, 2, 3 , 4 ou 5 pour visualiser les feuilles de match de chaque tour                                                                                                                                                                                                               \n"]
[null,"BAUGE",null,1,null,null,null,null,null,"CHOLET",null,0]
[null,"Journée 3","Date","Scores","Feuilles de Match",null,null,null,null,"Journée 3","Date","Scores","Feuilles de Match",null,null,null,null,"Classement général Poule B : CHOLET et Les FONTENELLES ex aequo : départage nombre de matches gagnés par la joueuse N°1 : CHOLET 2 - Les FONTENELLES 3                                                                                                                                                                                                                                         Equipe qualifiées pour le 1/2 finales : Les FONTENELLES"]
[null,"NANTES Erdre","2017-12-10",4,"Journée 3",null,null,null,null,"PORNIC","2017-12-10",2,"Journée 3"]
[null,"BAUGE",null,1,null,null,null,null,null,"CHOLET",null,3]
[null,"LAVAL","2018-12-10",3,"Journée 3",null,null,null,null,"Les FONTENELLES","2018-12-10",1,"Journée 3"]
[null,"ILE d'OR 2",null,2,null,null,null,null,null,"La BAULE",null,4]
[null,"Journée 4","Date","Scores","Feuilles de Match",null,null,null,null,"Journée 4","Date","Scores","Feuilles de Match"]
[null,"ILE d'OR 2","2018-01-14",5,"Journée 4",null,null,null,null,"La BAULE","2018-01-14",2,"Journée 4"]
[null,"NANTES Erdre",null,0,null,null,null,null,null,"PORNIC",null,2]
[null,"BAUGE","2018-01-14",1,"Journée 4",null,null,null,null,"CHOLET","2018-01-14",4,"Journée 4"]
[null,"ANGERS",null,4,null,null,null,null,null,"La DOMANGERE 2",null,1]
[null,"Journée 5","Date","Scores","Feuilles de Match",null,null,null,null,"Journée 5","Date","Scores","Feuilles de Match"]
[null,"NANTES Erdre","2018-01-28",3,"Journée 5",null,null,null,null,"PORNIC","2018-01-28",2,"Journée 5"]
[null,"LAVAL",null,2,null,null,null,null,null,"Les FONTENELLES",null,3]
[null,"ANGERS","2018-01-28",2,"Journée 5",null,null,null,null,"La DOMANGERE 2","2018-01-28",2,"Journée 5"]
[null,"ILE d'OR 2",null,3,null,null,null,null,null,"La BAULE",null,3]
[]
[]
[]
[]
[]
[]
[]
[]
[]
[null,null,null,null,null,null,null,null,null,null,null,null,null,null,null,null,null,null," "]

{"sheet":"FMJ1","index":1,"n_rows":1,"n_cols":1,"rows_kept":1,"cut":false,"hidden":false,"merged":[[0,0,0,2]]}
["Retour au classement"]

{"sheet":"FMJ2","index":2,"n_rows":1,"n_cols":1,"rows_kept":1,"cut":false,"hidden":false,"merged":[[0,0,0,2]]}
["Retour au classement"]

{"sheet":"FMJ3","index":3,"n_rows":1,"n_cols":1,"rows_kept":1,"cut":false,"hidden":false,"merged":[[0,0,0,2]]}
["Retour au classement"]

{"sheet":"FMJ4","index":4,"n_rows":1,"n_cols":1,"rows_kept":1,"cut":false,"hidden":false,"merged":[[0,0,0,2]]}
["Retour au classement"]

{"sheet":"FMJ5","index":5,"n_rows":1,"n_cols":1,"rows_kept":1,"cut":false,"hidden":false,"merged":[[0,0,0,2]]}
["Retour au classement"]

{"sheet":"Demi-Finale","index":6,"n_rows":1,"n_cols":1,"rows_kept":1,"cut":false,"hidden":false,"merged":[[0,0,0,2]]}
["Retour au classement"]

{"sheet":"Finale","index":7,"n_rows":1,"n_cols":1,"rows_kept":1,"cut":false,"hidden":false,"merged":[[0,0,0,2]]}
["Retour au classement"]